Workbook

Sheet Гос.язык
A1: Предмет: государственный (татарский) язык (2023 -2024 уч.год)
A3: № | B3: Наименование ОУ | C3: 1 класс | G3: 2 класс | K3: 3 класс | O3: 4 класс | S3: 5 класс | W3: 6 класс | AA3: 7 класс | AE3: 8 класс | AI3: 9 класс | AM3: 10 класс | AQ3: 11 класс
C4: кол-во учащихся всего | D4: кол-во ударников и отличников | E4: успеваемость, % | F4: качество, % | G4: кол-в+A15+G4:H10+G4:H11 | H4: кол-во ударников и отличников | I4: успеваемость, % | J4: качество, % | K4: кол-во учащихся всего | L4: кол-во ударников и отличников | M4: успеваемость, % | N4: качество, % | O4: кол-во учащихся всего | P4: кол-во ударников и отличников | Q4: усп+M16+Q4:Q10+Q4:Q4:Q10 | R4: качество, % | S4: всего | T4: кол-во ударников и отличников | U4: успеваемость, % | V4: качество, % | W4: кол-во учащихся всего | X4: кол-во ударников и отличников | Y4: успеваемость, % | Z4: качество, % | AA4: кол-во учащихся всего | AB4: кол-во ударников и отличников | AC4: успеваемость, % | AD4: качество, % | AE4: кол-во учащихся всего | AF4: кол-во ударников и отличников | AG4: успеваемость, % | AH4: качество, % | AI4: кол-во учащихся всего | AJ4: кол-во ударников и отличников | AK4: успеваемость, % | AL4: качество, % | AM4: кол-во учащихся всего | AN4: кол-во ударников и отличников | AO4: успеваемость, % | AP4: качество, % | AQ4: кол-во учащихся всего | AR4: кол-во ударников и отличников | AS4: успеваемость, % | AT4: качество, %
A5: 1 | B5: МБОУ "СОШ №2" МО " ЛМР"РТ | C5: 30 | D5: 0 | E5: 0 | F5: 0 | G5: 25 | H5: 25 | I5: 100 | J5: 100 | K5: 15 | L5: 13 | M5: 100 | N5: 86.6 | O5: 23 | P5: 21 | Q5: 100 | R5: 91.3 | S5: 26 | T5: 23 | U5: 100 | V5: 88.4 | W5: 18 | X5: 17 | Y5: 100 | Z5: 94.4 | AA5: 13 | AB5: 11 | AC5: 100 | AD5: 84.6 | AE5: 13 | AF5: 13 | AG5: 100 | AH5: 100 | AI5: 16 | AJ5: 16 | AK5: 100 | AL5: 100 | AM5: 5 | AN5: 5 | AO5: 100 | AP5: 100 | AQ5: 5 | AR5: 5 | AS5: 100 | AT5: 100
A6: 2 | B6: МБОУ "СОШ№4" | C6: 7 | G6: 27 | H6: 27 | I6: 100 | J6: 100 | K6: 19 | L6: 19 | M6: 100 | N6: 100 | O6: 15 | P6: 13 | Q6: 100 | R6: 86 | S6: 10 | T6: 8 | U6: 100 | V6: 75 | W6: 12 | X6: 11 | Y6: 100 | Z6: 90 | AA6: 13 | AB6: 5 | AC6: 100 | AD6: 56.5 | AE6: 23 | AF6: 20 | AG6: 100 | AH6: 88 | AI6: 11 | AJ6: 9 | AK6: 100 | AL6: 83 | AM6: 15 | AN6: 15 | AO6: 100 | AP6: 100
A7: 3 | B7: МБОУ "СОШ №8" | C7: 64 | E7: 0 | G7: 49 | H7: 45 | I7: 100 | J7: 91.8 | K7: 48 | L7: 48 | M7: 100 | N7: 100 | O7: 38 | P7: 38 | Q7: 100 | R7: 100 | S7: 33 | T7: 33 | U7: 100 | V7: 100 | W7: 24 | X7: 24 | Y7: 100 | Z7: 100 | AA7: 28 | AB7: 28 | AC7: 100 | AD7: 100 | AE7: 13 | AF7: 12 | AG7: 100 | AH7: 92.3 | AI7: 38 | AJ7: 37 | AK7: 100 | AL7: 97.3 | AM7: 4 | AN7: 4 | AO7: 100 | AP7: 100 | AQ7: 0 | AR7: 0 | AS7: 0 | AT7: 0
A8: 4 | B8: МБОУ лицей №12 | C8: 48 | D8: 0 | E8: 0 | F8: 0 | G8: 35 | H8: 35 | I8: 100 | J8: 100 | K8: 45 | L8: 41 | M8: 100 | N8: 91 | O8: 32 | P8: 30 | Q8: 100 | R8: 93.7 | S8: 29 | T8: 28 | U8: 100 | V8: 96 | W8: 35 | X8: 34 | Y8: 100 | Z8: 97 | AA8: 42 | AB8: 40 | AC8: 100 | AD8: 95 | AE8: 34 | AF8: 32 | AG8: 100 | AH8: 94 | AI8: 16 | AJ8: 16 | AK8: 100 | AL8: 100
A9: 6 | B9: МБОУ "Подлсеная ООШ" | C9: 5 | G9: 8 | H9: 5 | I9: 87.5 | J9: 62.5 | K9: 7 | L9: 7 | M9: 100 | N9: 100 | O9: 8 | P9: 7 | Q9: 100 | R9: 87.5 | S9: 14 | T9: 11 | U9: 100 | V9: 78.6 | W9: 6 | X9: 5 | Y9: 100 | Z9: 83.3 | AA9: 11 | AB9: 8 | AC9: 100 | AD9: 72.7 | AE9: 7 | AF9: 6 | AG9: 100 | AH9: 85.7 | AI9: 10 | AJ9: 9 | AK9: 100 | AL9: 90
A10: 7 | B10: МБОУ "Тимяшевская СОШ" | C10: 9 | D10: б/о | E10: нет | F10: нет | G10: 18 | H10: 16 | I10: 100 | J10: 88.89 | K10: 16 | L10: 13 | M10: 100 | N10: 81.25 | O10: 15 | P10: 13 | Q10: 100 | R10: 86.67 | S10: 10 | T10: 8 | U10: 100 | V10: 80 | W10: 11 | X10: 10 | Y10: 100 | Z10: 90.9 | AA10: 6 | AB10: 6 | AC10: 100 | AD10: 100 | AE10: 9 | AF10: 9 | AG10: 100 | AH10: 100 | AI10: 15 | AJ10: 12 | AK10: 100 | AL10: 80 | AM10: 3 | AN10: 3 | AO10: 100 | AP10: 100 | AQ10: 0 | AR10: 0 | AS10: нет | AT10: нет
A11: 8 | B11: МБОУ "Старокувакская СОШ" | C11: 11 | D11: нет | E11: нет | F11: нет | G11: 10 | H11: 9 | I11: 100 | J11: 90 | K11: 8 | L11: 8 | M11: 100 | N11: 100 | O11: 11 | P11: 11 | Q11: 100 | R11: 100 | S11: 13 | T11: 12 | U11: 100 | V11: 92.3 | W11: 9 | X11: 8 | Y11: 100 | Z11: 88.9 | AA11: 13 | AB11: 12 | AC11: 100 | AD11: 92.3 | AE11: 0 | AF11: нет | AG11: нет | AH11: нет | AI11: 0 | AJ11: нет | AK11: нет | AL11: нет | AM11: 0 | AN11: нет | AO11: нет | AP11: нет | AQ11: 0 | AR11: нет | AS11: нет | AT11: нет
A12: 9 | B12: МБОУ "СОШ №5" МО"ЛМР" РТ | C12: 24 | D12: 0 | E12: 0 | F12: 0 | G12: 29 | H12: 25 | I12: 100% | J12: 86% | K12: 28 | L12: 24 | M12: 100% | N12: 86% | O12: 26 | P12: 22 | Q12: 100% | R12: 85% | S12: 22 | T12: 19 | U12: 100% | V12: 86.00% | W12: 16 | X12: 14 | Y12: 100% | Z12: 87.50% | AA12: 21 | AB12: 15 | AC12: 100% | AD12: 76% | AE12: 10 | AF12: 10 | AG12: 100% | AH12: 100% | AI12: 34 | AJ12: 28 | AK12: 100% | AL12: 82% | AM12: 9 | AN12: 9 | AO12: 100% | AP12: 100% | AQ12: 11 | AR12: 11 | AS12: 100% | AT12: 100%
A13: 10 | B13: МБОУ"Старописьмянская ООШ" мо "ЛМР" РТ | C13: 9 | D13: 0 | E13: 0 | F13: 0 | G13: 7 | H13: 4 | I13: 100 | J13: 57.14 | K13: 7 | L13: 5 | M13: 100 | N13: 71.4 | O13: 3 | P13: 2 | Q13: 100 | R13: 66.7 | S13: 8 | T13: 5 | U13: 100 | V13: 62.5 | W13: 6 | X13: 2 | Y13: 100 | Z13: 33.33 | AA13: 5 | AB13: 3 | AC13: 100 | AD13: 60 | AE13: 3 | AF13: 2 | AG13: 100 | AH13: 66.7 | AI13: 7 | AJ13: 5 | AK13: 100 | AL13: 71.4 | AM13: 0 | AN13: 0 | AO13: 0 | AP13: 0 | AQ13: 0 | AR13: 0 | AS13: 0 | AT13: 0
A14: 11 | B14: МБОУ "Ивановская ООШ" | C14: 7 | G14: 0 | K14: 7 | L14: 4 | M14: 85.7 | N14: 71.4 | O14: 8 | P14: 5 | Q14: 100 | R14: 62.5 | S14: 6 | T14: 5 | U14: 100 | V14: 83.3 | W14: 7 | X14: 4 | Y14: 100 | Z14: 57.1 | AA14: 5 | AB14: 5 | AC14: 100 | AD14: 100 | AE14: 3 | AF14: 2 | AG14: 100 | AH14: 66.7 | AI14: 4 | AJ14: 3 | AK14: 100 | AL14: 75
A15: итого | G15: =SUM(G5:G14) -> 208 | H15: =SUM(H5:H14) -> 191 | I15: 98.7 | J15: 91.8 | K15: =SUM(K5:K14) -> 200 | L15: =SUM(L5:L14) -> 182 | M15: 98.5 | N15: 98.3 | O15: =SUM(O5:O14) -> 179 | P15: =SUM(P5:P14) -> 162 | Q15: 100 | R15: 90.5 | S15: =SUM(S5:S14) -> 171 | T15: =SUM(T5:T14) -> 152 | U15: 100 | V15: 88.8 | W15: =SUM(W5:W14) -> 144 | X15: =SUM(X5:X14) -> 129 | Y15: 100 | Z15: 89.5 | AA15: =SUM(AA5:AA14) -> 157 | AB15: =SUM(AB5:AB14) -> 133 | AC15: 100 | AD15: 84.7 | AE15: =SUM(AE5:AE14) -> 115 | AF15: =SUM(AF5:AF14) -> 106 | AG15: 100 | AH15: 92 | AI15: =SUM(AI5:AI14) -> 151 | AJ15: =SUM(AJ5:AJ14) -> 135 | AK15: 100 | AL15: 89.4 | AM15: =SUM(AM5:AM14) -> 36 | AN15: =SUM(AN5:AN14) -> 36 | AO15: 100 | AP15: 100 | AQ15: =SUM(AQ5:AQ14) -> 16 | AR15: =SUM(AR5:AR14) -> 16 | AS15: 100 | AT15: 100
B17: итоголмр | C17: успеваемость | E17: 99.70%
C18: качество | E18: 91.10%
B20: город | C20: успеваемость | E20: 100%
C21: качество | E21: 92%
B23: село | C23: успеваемость | E23: 99.70%
C24: качество | E24: 90.70%

Sheet Род.тат.язык
A1: Предмет: родной (татарский) язык (2023 -2024 уч.год)
A3: № | B3: Наименование ОУ | C3: 1 класс | G3: 2 класс | K3: 3 класс | O3: 4 класс | S3: 5 класс | W3: 6 класс | AA3: 7 класс | AE3: 8 класс | AI3: 9 класс | AM3: 10 класс | AQ3: 11 класс
C4: кол-во учащихся всего | D4: кол-во ударников и отличников | E4: успеваемость, % | F4: качество, % | G4: кол-во учащихся всего | H4: кол-во ударников и отличников | I4: успеваемость, % | J4: качество, % | K4: кол-во учащихся всего | L4: кол-во ударников и отличников | M4: успеваемость, % | N4: качество, % | O4: кол-+O4:P22во учащихся всего | P4: кол-во ударников и отличников | Q4: успеваемость, % | R4: качество, % | S4: кол-+S4:T22во учащихся всего | T4: кол-во ударников и отличников | U4: успеваемость, % | V4: качество, % | W4: кол-во учащихся всего | X4: кол-во ударников и отличников | Y4: успеваемость, % | Z4: качество, % | AA4: кол-во учащихся всего | AB4: кол-во ударников и отличников | AC4: успеваемость, % | AD4: качество, % | AE4: кол-во учащихся всего | AF4: кол-во ударников и отличников | AG4: успеваемость, % | AH4: кач+AH4:AH11ество, % | AI4: кол-во учащихся всего | AJ4: кол-во ударников и отличников | AK4: успеваемость, % | AL4: качество, % | AM4: кол-во учащихся всего | AN4: кол-во ударников и отличников | AO4: успеваемость, % | AP4: качество, % | AQ4: кол-во учащихся всего | AR4: кол-во ударников и отличников | AS4: успеваемость, % | AT4: качество, %
A5: 1 | B5: МБОУ "СОШ №2" МО " ЛМР"РТ | C5: 9 | D5: 0 | E5: 0 | F5: 0 | G5: 0 | H5: 0 | I5: 0 | J5: 0 | K5: 0 | L5: 0 | M5: 0 | N5: 0 | O5: 0 | P5: 0 | Q5: 0 | R5: 0 | S5: 0 | T5: 0 | U5: 0 | V5: 0 | W5: 0 | X5: 0 | Y5: 0 | Z5: 0 | AA5: 0 | AB5: 0 | AC5: 0 | AD5: 0 | AE5: 7 | AF5: 7 | AG5: 100 | AH5: 100 | AI5: 10 | AJ5: 10 | AK5: 100 | AL5: 100 | AM5: 0 | AN5: 0 | AO5: 0 | AP5: 0 | AQ5: 0 | AR5: 0 | AS5: 0 | AT5: 0
A6: 2 | B6: МБОУ "СОШ№4" | C6: 16 | G6: 15 | H6: 14 | I6: 100 | J6: 92 | K6: 7 | L6: 7 | M6: 100 | N6: 100 | O6: 9 | P6: 8 | Q6: 100 | R6: 92.5 | S6: 8 | T6: 8 | U6: 100 | V6: 100 | W6: 8 | X6: 6 | Y6: 100 | Z6: 83 | AA6: 6 | AB6: 6 | AC6: 100 | AD6: 100 | AE6: 9 | AF6: 7 | AG6: 100 | AH6: 78 | AI6: 10 | AJ6: 10 | AK6: 100 | AL6: 100 | AM6: 11 | AN6: 10 | AO6: 100 | AP6: 100
A7: 3 | B7: МБОУ "СОШ №8" | C7: 64 | E7: 0 | G7: 49 | H7: 45 | I7: 100 | J7: 91.8 | K7: 48 | L7: 48 | M7: 100 | N7: 100 | O7: 38 | P7: 38 | Q7: 100 | R7: 100 | S7: 33 | T7: 33 | U7: 100 | V7: 100 | W7: 24 | X7: 24 | Y7: 100 | Z7: 100 | AA7: 28 | AB7: 28 | AC7: 100 | AD7: 100 | AE7: 13 | AF7: 12 | AG7: 100 | AH7: 92.3 | AI7: 38 | AJ7: 37 | AK7: 100 | AL7: 97.3 | AM7: 4 | AN7: 4 | AO7: 100 | AP7: 100 | AQ7: 0 | AR7: 0 | AS7: 0 | AT7: 0
A8: 4 | B8: МБОУ "СОШ № 10" | C8: 10 | D8: 0 | E8: 0 | F8: 0 | G8: 6 | H8: 6 | I8: 100 | J8: 100 | K8: 5 | L8: 5 | M8: 100 | N8: 100 | O8: 6 | P8: 6 | Q8: 100 | R8: 100 | S8: 0 | T8: 0 | U8: 0 | V8: 0 | W8: 0 | X8: 0 | Y8: 0 | Z8: 0 | AA8: 10 | AB8: 9 | AC8: 100 | AD8: 90 | AE8: 9 | AF8: 8 | AG8: 100 | AH8: 89 | AI8: 12 | AJ8: 10 | AK8: 100 | AL8: 90 | AM8: 0 | AN8: 0 | AO8: 0 | AP8: 0 | AQ8: 11 | AR8: 11 | AS8: 100 | AT8: 100
A9: 5 | B9: МБОУ "Гимназия №11 г.Лениногорска" | C9: 75 | G9: 84 | H9: 71 | I9: 100 | J9: 84.5 | K9: 84 | L9: 67 | M9: 100 | N9: 79.7 | O9: 99 | P9: 91 | Q9: 100 | R9: 91.9 | S9: 94 | T9: 80 | U9: 100 | V9: 85.1 | W9: 81 | X9: 73 | Y9: 100 | Z9: 90.1 | AA9: 74 | AB9: 57 | AC9: 100 | AD9: 77 | AE9: 74 | AF9: 63 | AG9: 100 | AH9: 93.1 | AI9: 85 | AJ9: 52 | AK9: 100 | AL9: 61.1 | AM9: 19 | AN9: 19 | AO9: 100 | AP9: 100 | AQ9: 20 | AR9: 20 | AS9: 100 | AT9: 100
A10: 6 | B10: МБОУ лицей №12 | C10: 13 | D10: 0 | E10: 0 | F10: 0 | G10: 13 | H10: 9 | I10: 85 | J10: 70 | K10: 10 | L10: 10 | M10: 100 | N10: 100 | O10: 14 | P10: 3 | Q10: 100 | R10: 100 | S10: 5 | T10: 5 | U10: 100 | V10: 100 | W10: 7 | X10: 7 | Y10: 100 | Z10: 100 | AA10: 8 | AB10: 8 | AC10: 100 | AD10: 100 | AE10: 6 | AF10: 6 | AG10: 100 | AH10: 100 | AI10: 11 | AJ10: 11 | AK10: 100 | AL10: 100
A11: 7 | B11: МБОУ "Урмышлинская ООШ" | C11: 5 | G11: 1 | H11: 0 | I11: 100 | J11: 0 | K11: 3 | L11: 2 | M11: 100 | N11: 66.7 | O11: 3 | P11: 3 | Q11: 100 | R11: 100 | S11: 1 | T11: 0 | U11: 100 | V11: 0 | W11: 3 | X11: 2 | Y11: 100 | Z11: 66.7 | AA11: 0 | AB11: 0 | AC11: 0 | AD11: 0 | AE11: 0 | AF11: 0 | AG11: 0 | AH11: 0 | AI11: 8 | AJ11: 7 | AK11: 100 | AL11: 87.5 | AM11: 0 | AN11: 0 | AO11: 0 | AP11: 0 | AQ11: 0 | AR11: 0 | AS11: 0 | AT11: 0
A12: 8 | B12: МБОУ СОШ 7 | C12: 40 | G12: 43 | H12: 40 | I12: 100 | J12: 93 | K12: 51 | L12: 47 | M12: 100 | N12: 92 | O12: 56 | P12: 52 | Q12: 100 | R12: 92.8 | S12: 40 | T12: 40 | U12: 100 | V12: 100 | W12: 23 | X12: 23 | Y12: 100 | Z12: 100 | AA12: 49 | AB12: 45 | AC12: 100 | AD12: 91.8 | AE12: 37 | AF12: 37 | AG12: 100 | AH12: 100 | AI12: 19 | AJ12: 18 | AK12: 100 | AL12: 94.7 | AM12: 6 | AN12: 6 | AO12: 100 | AP12: 100 | AQ12: 0 | AR12: 0 | AS12: 0 | AT12: 0
A13: 9 | B13: МБОУ "Тимяшевская СОШ" | C13: 2 | D13: б/о | E13: нет | F13: нет | G13: 3 | H13: 3 | I13: 100 | J13: 100 | K13: 7 | L13: 7 | M13: 100 | N13: 100 | O13: 3 | P13: 3 | Q13: 100 | R13: 100 | S13: 9 | T13: 9 | U13: 100 | V13: 100 | W13: 6 | X13: 6 | Y13: 100 | Z13: 100 | AA13: 11 | AB13: 10 | AC13: 100 | AD13: 90.9 | AE13: 11 | AF13: 11 | AG13: 100 | AH13: 100 | AI13: 12 | AJ13: 11 | AK13: 100 | AL13: 91.67 | AM13: 5 | AN13: 5 | AO13: 100 | AP13: 100 | AQ13: 2 | AR13: 2 | AS13: 100 | AT13: 100
A14: 10 | B14: МБОУ "Старо-Иштерякская ООШ" | C14: 5 | G14: 9 | H14: 9 | I14: 100 | J14: 100 | K14: 9 | L14: 7 | M14: 100 | N14: 77 | O14: 5 | P14: 4 | Q14: 100 | R14: 80 | S14: 10 | T14: 7 | U14: 100 | V14: 70 | W14: 2 | X14: 2 | Y14: 100 | Z14: 100 | AA14: 14 | AB14: 12 | AC14: 100 | AD14: 85 | AE14: 9 | AF14: 8 | AG14: 100 | AH14: 88 | AI14: 4 | AJ14: 3 | AK14: 100 | AL14: 75
A15: 11 | B15: МБОУ "Зеленорощинская сош им. М. Горького" МО "ЛМР" РТ | C15: 2 | K15: 5 | L15: 5 | M15: 100 | N15: 100 | O15: 2 | P15: 2 | Q15: 100 | R15: 100 | S15: 8 | T15: 6 | U15: 100 | V15: 75 | W15: 8 | X15: 8 | Y15: 100 | Z15: 100 | AA15: 6 | AB15: 6 | AC15: 100 | AD15: 100 | AE15: 8 | AF15: 8 | AG15: 100 | AH15: 100 | AI15: 8 | AJ15: 8 | AK15: 100 | AL15: 100 | AM15: 2 | AN15: 2 | AO15: 100 | AP15: 100 | AQ15: 1 | AR15: 1 | AS15: 100 | AT15: 100
A16: 12 | B16: МБОУ "Шугуровская СОШ им.В.П.Чкалова" МО "ЛМР" РТ | C16: 30 | D16: безоценочная | E16: безоценочная | F16: безоценочная | G16: 32 | H16: 26 | I16: 97 | J16: 81.2 | K16: 30 | L16: 25 | M16: 100 | N16: 83.3 | O16: 25 | P16: 16 | Q16: 100 | R16: 64 | S16: 40 | T16: 37 | U16: 100 | V16: 92.5 | W16: 36 | X16: 31 | Y16: 98 | Z16: 86.1 | AA16: 41 | AB16: 37 | AC16: 100 | AD16: 90.2 | AE16: 32 | AF16: 30 | AG16: 100 | AH16: 93.7 | AI16: 42 | AJ16: 33 | AK16: 100 | AL16: 78.6 | AM16: 14 | AN16: 14 | AO16: 100 | AP16: 100 | AQ16: 21 | AR16: 21 | AS16: 100 | AT16: 100
A17: 13 | B17: МБОУ "Зай-Каратайская ООШ" МО "ЛМР" РТ | C17: 4 | D17: - | E17: - | F17: - | G17: 2 | H17: 2 | I17: 100 | J17: 100 | K17: 0 | L17: 0 | M17: 0 | N17: 0 | O17: 4 | P17: 1 | Q17: 100 | R17: 25 | S17: 2 | T17: 1 | U17: 100 | V17: 50 | W17: 1 | X17: 1 | Y17: 100 | Z17: 100 | AA17: 3 | AB17: 1 | AC17: 100 | AD17: 33 | AE17: 2 | AF17: 1 | AG17: 100 | AH17: 50 | AI17: 2 | AJ17: 2 | AK17: 100 | AL17: 100 | AM17: 0 | AN17: 0 | AO17: - | AP17: - | AQ17: 0 | AR17: 0 | AS17: - | AT17: -
A18: 14 | B18: МБОУ " Куакбашская ООШ" | C18: 4 | D18: б/о | E18: б/о | F18: б/о | G18: 5 | H18: 3 | I18: 100 | J18: 60 | K18: 6 | L18: 2 | M18: 100 | N18: 33.3 | O18: 4 | P18: 3 | Q18: 100 | R18: 75 | S18: 5 | T18: 5 | U18: 100 | V18: 100 | W18: 1 | X18: 1 | Y18: 100 | Z18: 100 | AA18: 9 | AB18: 5 | AC18: 100 | AD18: 55.6 | AE18: 5 | AF18: 4 | AG18: 100 | AH18: 80 | AI18: 12 | AJ18: 7 | AK18: 100 | AL18: 58.3 | AM18: 0 | AN18: 0 | AO18: 0 | AP18: 0 | AQ18: 0 | AR18: 0 | AS18: 0 | AT18: 0
A19: 15 | B19: МБОУ "Федотовская ООШ" МО ЛМР РТ | C19: 1 | D19: 0 | E19: 0 | F19: 0 | G19: 0 | H19: 0 | I19: 0 | J19: 0 | K19: 5 | L19: 5 | M19: 100 | N19: 100 | O19: 2 | P19: 2 | Q19: 100 | R19: 100 | S19: 1 | T19: 1 | U19: 100 | V19: 100 | W19: 3 | X19: 3 | Y19: 100 | Z19: 100 | AA19: 2 | AB19: 2 | AC19: 100 | AD19: 100 | AE19: 3 | AF19: 3 | AG19: 100 | AH19: 100 | AI19: 3 | AJ19: 3 | AK19: 100 | AL19: 100 | AM19: 0 | AN19: 0 | AO19: 0 | AP19: 0 | AQ19: 0 | AR19: 0 | AS19: 0 | AT19: 0
A20: 16 | B20: МБОУ "СОШ №6 г.Лениногорска имени Героя России Д.Н.Исламова" ЛМР РТ | C20: 60 | G20: 14 | H20: 14 | I20: 100 | J20: 100 | K20: 30 | L20: 29 | M20: 100 | N20: 96.6 | O20: 21 | P20: 19 | Q20: 100 | R20: 90.4 | S20: 12 | T20: 12 | U20: 100 | V20: 100 | W20: 19 | X20: 18 | Y20: 100 | Z20: 94.7 | AA20: 20 | AB20: 18 | AC20: 100 | AD20: 91.1 | AE20: 27 | AF20: 27 | AG20: 100 | AH20: 100 | AI20: 10 | AJ20: 10 | AK20: 100 | AL20: 100
A21: 17 | B21: МБОУ «Каркалинская ООШ им.Галии и Замита Рахимовых» МО «ЛМР» РТ | C21: 1 | D21: - | E21: - | F21: - | G21: 1 | H21: 0 | I21: 100 | J21: 0 | K21: 4 | L21: 3 | M21: 100 | N21: 75 | O21: 3 | P21: 3 | Q21: 100 | R21: 100 | S21: - | T21: - | U21: - | V21: - | W21: 2 | X21: 1 | Y21: 100 | Z21: 50 | AA21: 1 | AB21: 1 | AC21: 100 | AD21: 100 | AE21: 4 | AF21: 2 | AG21: 100 | AH21: 50 | AI21: 3 | AJ21: 1 | AK21: 100 | AL21: 33.3 | AM21: - | AN21: - | AO21: - | AP21: - | AQ21: - | AR21: - | AS21: - | AT21: -
A22: 18 | B22: МБОУ "СОШ №5" МО"ЛМР" РТ | C22: 0 | D22: 0 | E22: 0 | F22: 0 | G22: 5 | H22: 4 | I22: 100% | J22: 80% | K22: 0 | L22: 0 | M22: 0% | N22: 0% | O22: 7 | P22: 7 | Q22: 100% | R22: 100% | S22: 4 | T22: 4 | U22: 100% | V22: 100.00% | W22: 0 | X22: 0 | Y22: 0% | Z22: 0.00% | AA22: 4 | AB22: 4 | AC22: 100% | AD22: 100% | AE22: 4 | AF22: 3 | AG22: 100% | AH22: 75% | AI22: 4 | AJ22: 4 | AK22: 100% | AL22: 100% | AM22: 0 | AN22: 0 | AO22: 0% | AP22: 0% | AQ22: 0 | AR22: 0 | AS22: 0% | AT22: 0%
A23: 19 | B23: МБОУ "Сарабикуловская ООШ" | C23: 2 | G23: 4 | H23: 2 | I23: 100 | J23: 50 | K23: 0 | L23: 0 | M23: 0 | N23: 0 | O23: 2 | P23: 1 | Q23: 100 | R23: 50 | S23: 5 | T23: 3 | U23: 100 | V23: 70 | W23: 0 | X23: 0 | Y23: 0 | Z23: 0 | AA23: 2 | AB23: 2 | AC23: 100 | AD23: 100 | AE23: 3 | AF23: 1 | AG23: 100 | AH23: 33.3 | AI23: 2 | AJ23: 1 | AK23: 100 | AL23: 50 | AM23: 0 | AN23: 0 | AO23: 0 | AP23: 0 | AQ23: 0 | AR23: 0 | AS23: 0 | AT23: 0
A24: 20 | B24: МБОУ "ООШ№1" | G24: 5 | H24: 5 | I24: 100 | J24: 100 | K24: 9 | L24: 9 | M24: 100 | N24: 100 | O24: 7 | P24: 7 | Q24: 100 | R24: 100 | S24: 6 | T24: 6 | U24: 100 | V24: 100 | W24: 3 | X24: 3 | Y24: 100 | Z24: 100 | AA24: 5 | AB24: 5 | AC24: 100 | AD24: 100 | AE24: 7 | AF24: 7 | AG24: 100 | AH24: 100 | AI24: 4 | AJ24: 4 | AK24: 100 | AL24: 100 | AM24: 0 | AN24: 0 | AO24: 0 | AP24: 0 | AQ24: 0 | AR24: 0 | AS24: 0 | AT24: 0
A25: 21 | B25: МБОУ СОШ №3 | C25: 10 | D25: 0 | E25: 0 | F25: 0 | G25: 6 | H25: 5 | I25: 100% | J25: 83% | K25: 7 | L25: 6 | M25: 100% | N25: 85% | O25: 11 | P25: 8 | Q25: 100% | R25: 72% | S25: 10 | T25: 8 | U25: 100% | V25: 80% | W25: 6 | X25: 4 | Y25: 100% | Z25: 66% | AA25: 9 | AB25: 7 | AC25: 100% | AD25: 77% | AE25: 10 | AF25: 9 | AG25: 100% | AH25: 90% | AI25: 4 | AJ25: 2 | AK25: 100% | AL25: 75% | AM25: 0 | AN25: 0 | AO25: 0 | AP25: 0 | AQ25: 0 | AR25: 0 | AS25: 0 | AT25: 0
A26: 22 | B26: МБОУ"Керлигачская ООШ" | C26: 1 | G26: 1 | H26: 0 | I26: 100 | J26: 0 | K26: 1 | L26: 1 | M26: 100 | N26: 100 | O26: 4 | P26: 4 | Q26: 100 | R26: 100 | S26: 0 | T26: 0 | U26: 0 | V26: 0 | W26: 2 | X26: 1 | Y26: 100 | Z26: 50 | AA26: 2 | AB26: 2 | AC26: 100 | AD26: 100 | AE26: 2 | AF26: 2 | AG26: 100 | AH26: 100 | AI26: 3 | AJ26: 3 | AK26: 100 | AL26: 100 | AM26: 0 | AN26: 0 | AO26: 0 | AP26: 0 | AQ26: 0 | AR26: 0 | AS26: 0 | AT26: 0
A27: 23 | B27: МБОУ "Нижнечершилинская ООШ" | C27: 5 | G27: 0 | H27: 0 | I27: 0 | J27: 0 | K27: 3 | L27: 1 | M27: 100 | N27: 33.3 | O27: 3 | P27: 2 | Q27: 100 | R27: 66.6 | S27: 0 | T27: 0 | U27: 0 | V27: 0 | W27: 3 | X27: 2 | Y27: 100 | Z27: 66.6 | AA27: 6 | AB27: 6 | AC27: 100 | AD27: 100 | AE27: 6 | AF27: 5 | AG27: 100 | AH27: 83.3 | AI27: 6 | AJ27: 6 | AK27: 100 | AL27: 100 | AM27: 0 | AN27: 0 | AO27: 0 | AP27: 0 | AQ27: 0 | AR27: 0 | AS27: 0 | AT27: 0
A28: 24 | B28: МБОУ "Урдалинская ООШ" МО ЛМР РТ | C28: 0 | D28: 0 | E28: 0 | F28: 0 | G28: 3 | H28: 1 | I28: 100 | J28: 33.3 | K28: 4 | L28: 3 | M28: 100 | N28: 75 | O28: 1 | P28: 1 | Q28: 100 | R28: 100 | S28: 2 | T28: 1 | U28: 100 | V28: 50 | W28: 2 | X28: 0 | Y28: 100 | Z28: 0 | AA28: 4 | AB28: 3 | AC28: 100 | AD28: 75 | AE28: 3 | AF28: 2 | AG28: 100 | AH28: 66.6 | AI28: 1 | AJ28: 1 | AK28: 100 | AL28: 100
A29: 25 | B29: МБОУ "СОШ №13 г. Лениногорска" МО "ЛМР" РТ | G29: 3 | H29: 3 | I29: 100 | J29: 100 | K29: 5 | L29: 3 | M29: 100 | N29: 60 | O29: 6 | P29: 4 | Q29: 100 | R29: 674 | S29: 4 | T29: 3 | U29: 100 | V29: 75 | W29: 3 | X29: 3 | Y29: 100 | Z29: 100 | AA29: 4 | AB29: 3 | AC29: 100 | AD29: 75 | AE29: 3 | AF29: 2 | AG29: 100 | AH29: 67 | AI29: 2 | AJ29: 2 | AK29: 100 | AL29: 100 | AM29: 0 | AQ29: 0
A30: итого | G30: =SUM(G5:G29) -> 304 | H30: =SUM(H5:H29) -> 262 | I30: 99.1 | J30: 86.1 | K30: =SUM(K5:K29) -> 333 | L30: =SUM(L5:L29) -> 292 | M30: 100 | N30: 87.6 | O30: =SUM(O5:O29) -> 335 | P30: =SUM(P5:P29) -> 288 | Q30: 100 | R30: 85.9 | S30: =SUM(S5:S29) -> 299 | T30: =SUM(T5:T29) -> 269 | U30: 100 | V30: 89.9 | W30: =SUM(W5:W29) -> 243 | X30: =SUM(X5:X29) -> 219 | Y30: 99.9 | Z30: 90.1 | AA30: =SUM(AA5:AA29) -> 318 | AB30: =SUM(AB5:AB29) -> 277 | AC30: 100 | AD30: 87.1 | AE30: =SUM(AE5:AE29) -> 294 | AF30: =SUM(AF5:AF29) -> 265 | AG30: 100 | AH30: 90.1 | AI30: =SUM(AI5:AI29) -> 315 | AJ30: =SUM(AJ5:AJ29) -> 256 | AK30: 100 | AL30: 81.2 | AM30: =SUM(AM5:AM29) -> 61 | AN30: =SUM(AN5:AN29) -> 60 | AO30: 100 | AP30: 98.3 | AQ30: =SUM(AQ5:AQ29) -> 55 | AR30: =SUM(AR5:AR29) -> 55 | AS30: 100 | AT30: 100
B32: итого ЛМР | C32: успеваемость | E32: 99.90%
C33: качество | E33: 87.70%
B35: город | C35: успеваемость | E35: 100.00%
C36: качество | E36: 87.50%
B38: село | C38: успеваемость | E38: 99.90%
C39: качество | E39: 87.90%

Sheet Род.тат.лит
A1: Предмет: литературное чтение на родном (татарском) языке - 1-4 классы; родная (татарская) литература - 5-11 классы (2023 -2024 уч.год)
A3: № | B3: Наименование ОУ | C3: 1 класс | G3: 2 класс | K3: 3 класс | O3: 4 класс | S3: 5 класс | W3: 6 класс | AA3: 7 класс | AE3: 8 класс | AI3: 9 класс | AM3: 10 класс | AQ3: 11 класс
C4: кол-во учащихся всего | D4: кол-во ударников и отличников | E4: успеваемость, % | F4: качество, % | G4: кол-во учащихся всего | H4: кол-во ударников и отличников | I4: успеваемость, % | J4: качество, % | K4: кол-во учащихся всего | L4: кол-во ударников и отличников | M4: успеваемость, % | N4: качество, % | O4: кол-во учащихся всего | P4: кол-во ударников и отличников | Q4: успеваемость, % | R4: качество, % | S4: кол-во учащихся всего | T4: кол-во ударников и отличников | U4: успеваемость, % | V4: качество, % | W4: кол-во учащихся всего | X4: кол-во ударников и отличников | Y4: успеваемость, % | Z4: качество, % | AA4: кол-во учащихся всего | AB4: кол-во ударников и отличников | AC4: успеваемость, % | AD4: качество, % | AE4: кол-во учащихся всего | AF4: кол-во ударников и отличников | AG4: успеваемость, % | AH4: качество, % | AI4: кол-во учащихся всего | AJ4: кол-во ударников и отличников | AK4: успеваемость, % | AL4: качество, % | AM4: кол-во учащихся всего | AN4: кол-во ударников и отличников | AO4: успеваемость, % | AP4: качество, % | AQ4: кол-во учащихся всего | AR4: кол-во ударников и отличников | AS4: успеваемость, % | AT4: качество, %
A5: 1 | B5: МБОУ "СОШ №2" МО " ЛМР"РТ | C5: 9 | D5: 0 | E5: 0 | F5: 0 | G5: 0 | H5: 0 | I5: 0 | J5: 0 | K5: 0 | L5: 0 | M5: 0 | N5: 0 | O5: 0 | P5: 0 | Q5: 0 | R5: 0 | S5: 0 | T5: 0 | U5: 0 | V5: 0 | W5: 0 | AE5: 7 | AF5: 7 | AG5: 100 | AH5: 100 | AI5: 10 | AJ5: 10 | AK5: 100 | AL5: 100 | AM5: 0 | AN5: 0 | AO5: 0 | AP5: 0 | AQ5: 0 | AR5: 0 | AS5: 0 | AT5: 0
A6: 2 | B6: МБОУ "СОШ№4" | C6: 16 | G6: 15 | H6: 14 | I6: 100 | J6: 93 | K6: 7 | L6: 7 | M6: 100 | N6: 100 | O6: 9 | P6: 9 | Q6: 100 | R6: 100 | S6: 8 | T6: 8 | U6: 100 | V6: 100 | W6: 8 | X6: 7 | Y6: 100 | Z6: 87 | AA6: 6 | AB6: 6 | AC6: 100 | AD6: 100 | AE6: 9 | AF6: 8 | AG6: 100 | AH6: 88 | AI6: 10 | AJ6: 10 | AK6: 100 | AL6: 100 | AM6: 11 | AN6: 11 | AO6: 100 | AP6: 100
A7: 3 | B7: МБОУ "СОШ №8" | C7: 0 | E7: 0 | G7: 3 | H7: 3 | I7: 100 | J7: 100 | K7: 3 | L7: 3 | M7: 100 | N7: 100 | O7: 11 | P7: 11 | Q7: 100 | R7: 100 | S7: 8 | T7: 8 | U7: 100 | V7: 100 | W7: 11 | X7: 11 | Y7: 100 | Z7: 100 | AA7: 4 | AB7: 3 | AC7: 100 | AD7: 75 | AE7: 16 | AF7: 16 | AG7: 100 | AH7: 100 | AI7: 7 | AJ7: 7 | AK7: 100 | AL7: 100 | AM7: 4 | AN7: 4 | AO7: 100 | AP7: 100 | AQ7: 0 | AR7: 0 | AS7: 0 | AT7: 0
A8: 4 | B8: МБОУ "СОШ № 10" | C8: 10 | D8: 0 | E8: 0 | F8: 0 | G8: 6 | H8: 6 | I8: 100 | J8: 100 | K8: 5 | L8: 5 | M8: 100 | N8: 100 | O8: 6 | P8: 6 | Q8: 100 | R8: 100 | S8: 0 | T8: 0 | U8: 0 | V8: 0 | W8: 0 | X8: 0 | Y8: 0 | Z8: 0 | AA8: 10 | AB8: 10 | AC8: 100 | AD8: 100 | AE8: 9 | AF8: 8 | AG8: 100 | AH8: 89 | AI8: 12 | AJ8: 10 | AK8: 100 | AL8: 90 | AM8: 0 | AN8: 0 | AO8: 0 | AP8: 0 | AQ8: 11 | AR8: 11 | AS8: 100 | AT8: 100
A9: 5 | B9: МБОУ "Гимназия №11 г.Лениногорска" | C9: 75 | G9: 40 | H9: 39 | I9: 100 | J9: 100 | K9: 54 | L9: 46 | M9: 100 | N9: 85.1 | O9: 57 | P9: 54 | Q9: 100 | R9: 94.7 | S9: 46 | T9: 45 | U9: 100 | V9: 97.8 | W9: 41 | X9: 41 | Y9: 100 | Z9: 100 | AA9: 35 | AB9: 28 | AC9: 100 | AD9: 80 | AE9: 38 | AF9: 38 | AG9: 100 | AH9: 100 | AI9: 44 | AJ9: 37 | AK9: 100 | AL9: 84 | AM9: 8 | AN9: 8 | AO9: 100 | AP9: 100 | AQ9: 11 | AR9: 11 | AS9: 100 | AT9: 100
A10: 6 | B10: МБОУ лицей №12 | C10: 13 | D10: 0 | E10: 0 | F10: 0 | G10: 13 | H10: 11 | I10: 85 | J10: 85 | K10: 10 | L10: 10 | M10: 100 | N10: 100 | O10: 14 | P10: 13 | Q10: 100 | R10: 92 | S10: 5 | T10: 5 | U10: 100 | V10: 100 | W10: 7 | X10: 7 | Y10: 100 | Z10: 100 | AA10: 8 | AB10: 8 | AC10: 100 | AD10: 100 | AE10: 6 | AF10: 6 | AG10: 100 | AH10: 100 | AI10: 11 | AJ10: 11 | AK10: 100 | AL10: 100
A11: 7 | B11: МБОУ "Урмышлинская ООШ" | C11: 5 | G11: 1 | H11: 1 | I11: 100 | J11: 100 | K11: 3 | L11: 3 | M11: 100 | N11: 100 | O11: 3 | P11: 3 | Q11: 100 | R11: 100 | S11: 1 | T11: 0 | U11: 100 | V11: 0 | W11: 3 | X11: 3 | Y11: 100 | Z11: 100 | AA11: 0 | AB11: 0 | AC11: 0 | AD11: 0 | AE11: 0 | AF11: 0 | AG11: 0 | AH11: 0 | AI11: 8 | AJ11: 7 | AK11: 100 | AL11: 87.5 | AM11: 0 | AN11: 0 | AO11: 0 | AP11: 0 | AQ11: 0 | AR11: 0 | AS11: 0 | AT11: 0
A12: 8 | B12: МБОУ СОШ 7 | C12: 5 | G12: 33 | I12: 100 | J12: 100 | K12: 6 | L12: 6 | M12: 100 | N12: 100 | O12: 5 | P12: 5 | Q12: 100 | R12: 100 | S12: 2 | T12: 2 | U12: 100 | V12: 100 | W12: 1 | X12: 1 | Y12: 100 | Z12: 100 | AA12: 5 | AB12: 4 | AC12: 100 | AD12: 80 | AE12: 6 | AF12: 6 | AG12: 100 | AH12: 100 | AI12: 6 | AJ12: 5 | AK12: 100 | AL12: 83.3 | AM12: 0 | AQ12: 0
A13: 9 | B13: МБОУ "Тимяшевская СОШ" | C13: 2 | D13: б/о | E13: нет | F13: нет | G13: 3 | H13: 3 | I13: 100 | J13: 100 | K13: 7 | L13: 7 | M13: 100 | N13: 100 | O13: 3 | P13: 3 | Q13: 100 | R13: 100 | S13: 9 | T13: 9 | U13: 100 | V13: 100 | W13: 6 | X13: 6 | Y13: 100 | Z13: 100 | AA13: 11 | AB13: 11 | AC13: 100 | AD13: 100 | AE13: 11 | AF13: 11 | AG13: 100 | AH13: 100 | AI13: 12 | AJ13: 12 | AK13: 100 | AL13: 100 | AM13: 5 | AN13: 5 | AO13: 100 | AP13: 100 | AQ13: 2 | AR13: 2 | AS13: 100 | AT13: 100
A14: 10 | B14: МБОУ "Старокувакская СОШ" | C14: 0 | D14: нет | E14: нет | F14: нет | G14: 0 | H14: нет | I14: нет | J14: нет | K14: 0 | L14: нет | M14: нет | N14: нет | O14: 0 | P14: нет | Q14: нет | R14: нет | S14: 0 | T14: нет | U14: нет | V14: нет | W14: 0 | X14: нет | Y14: нет | Z14: нет | AA14: 0 | AB14: нет | AC14: нет | AD14: нет | AE14: 0 | AF14: нет | AG14: нет | AH14: нет | AI14: 0 | AJ14: нет | AK14: нет | AL14: нет | AM14: 0 | AN14: нет | AO14: нет | AP14: нет | AQ14: 0 | AR14: нет | AS14: нет | AT14: нет
A15: 11 | B15: МБОУ "Старо-Иштерякская ООШ" | C15: 5 | G15: 9 | H15: 9 | I15: 100 | J15: 100 | K15: 9 | L15: 8 | M15: 100 | N15: 88 | O15: 5 | P15: 5 | Q15: 100 | R15: 100 | S15: 10 | T15: 8 | U15: 100 | V15: 80 | W15: 2 | X15: 2 | Y15: 100 | Z15: 100 | AA15: 14 | AB15: 11 | AC15: 100 | AD15: 78 | AE15: 9 | AF15: 9 | AG15: 100 | AH15: 100 | AI15: 4 | AJ15: 3 | AK15: 100 | AL15: 75
A16: 12 | B16: МБОУ "Зеленорощинская сош им. М. Горького" МО "ЛМР" РТ | C16: 2 | K16: 5 | L16: 5 | M16: 100 | N16: 100 | O16: 2 | P16: 2 | Q16: 100 | R16: 100 | S16: 8 | T16: 8 | U16: 100 | V16: 100 | W16: 8 | X16: 8 | Y16: 100 | Z16: 0 | AA16: 6 | AB16: 6 | AC16: 100 | AD16: 100 | AE16: 8 | AF16: 8 | AG16: 100 | AH16: 100 | AI16: 8 | AJ16: 8 | AK16: 100 | AL16: 100 | AM16: 2 | AN16: 2 | AO16: 100 | AP16: 100 | AQ16: 1 | AR16: 1 | AS16: 100 | AT16: 100
A17: 13 | B17: МБОУ "Шугуровская СОШ им.В.П.Чкалова" МО "ЛМР" РТ | C17: 30 | D17: безотметочная | E17: безотметочная | F17: безотметочная | G17: 32 | H17: 30 | I17: 97 | J17: 93.75 | K17: 30 | L17: 28 | M17: 100 | N17: 93.33 | O17: 25 | P17: 17 | Q17: 100 | R17: 68 | S17: 40 | T17: 38 | U17: 100 | V17: 95 | W17: 36 | X17: 31 | Y17: 100 | Z17: 86.1 | AA17: 41 | AB17: 40 | AC17: 100 | AD17: 98 | AE17: 32 | AF17: 30 | AG17: 100 | AH17: 94 | AI17: 42 | AJ17: 41 | AK17: 100 | AL17: 98 | AM17: 14 | AN17: 14 | AO17: 100 | AP17: 100 | AQ17: 21 | AR17: 21 | AS17: 100 | AT17: 100
A18: 14 | B18: МБОУ "Зай-Каратайская ООШ" МО "ЛМР" РТ | C18: 4 | D18: - | E18: - | F18: - | G18: 2 | H18: 2 | I18: 100 | J18: 100 | K18: 0 | L18: 0 | M18: 0 | N18: 0 | O18: 4 | P18: 3 | Q18: 100 | R18: 75 | S18: 2 | T18: 1 | U18: 100 | V18: 50 | W18: 1 | X18: 1 | Y18: 100 | Z18: 100 | AA18: 3 | AB18: 2 | AC18: 100 | AD18: 66 | AE18: 2 | AF18: 1 | AG18: 100 | AH18: 50 | AI18: 2 | AJ18: 2 | AK18: 100 | AL18: 100 | AM18: 0 | AN18: 0 | AO18: - | AP18: - | AQ18: 0 | AR18: 0 | AS18: - | AT18: -
A19: 15 | B19: МБОУ " Куакбашская ООШ" | C19: 4 | D19: б/о | E19: б/о | F19: б/о | G19: 5 | H19: 5 | I19: 100 | J19: 100 | K19: 6 | L19: 3 | M19: 100 | N19: 50 | O19: 4 | P19: 3 | Q19: 100 | R19: 75 | S19: 5 | T19: 5 | U19: 100 | V19: 100 | W19: 1 | X19: 1 | Y19: 100 | Z19: 100 | AA19: 9 | AB19: 6 | AC19: 100 | AD19: 66.7 | AE19: 5 | AF19: 4 | AG19: 100 | AH19: 80 | AI19: 12 | AJ19: 7 | AK19: 100 | AL19: 58.3 | AM19: 0 | AN19: 0 | AO19: 0 | AP19: 0 | AQ19: 0 | AR19: 0 | AS19: 0 | AT19: 0
A20: 16 | B20: МБОУ "СОШ №5" МО"ЛМР" РТ | C20: 0 | D20: 0 | E20: 0 | F20: 0 | G20: 5 | H20: 4 | I20: 100% | J20: 80% | K20: 0 | L20: 0 | M20: 0% | N20: 0 | O20: 7 | P20: 7 | Q20: 100% | R20: 100% | S20: 4 | T20: 4 | U20: 100% | V20: 100% | W20: 0 | X20: 0 | Y20: 0% | Z20: 0 | AA20: 4 | AB20: 4 | AC20: 100% | AD20: 100% | AE20: 4 | AF20: 3 | AG20: 100% | AH20: 75% | AI20: 4 | AJ20: 4 | AK20: 100% | AL20: 100% | AM20: 0 | AN20: 0 | AO20: 0% | AP20: 0 | AQ20: 11 | AR20: 11 | AS20: 100% | AT20: 100
A21: 17 | B21: МБОУ "Сарабикуловская ООШ" | C21: 2 | G21: 4 | H21: 2 | I21: 100 | J21: 50 | K21: 0 | L21: 0 | M21: 0 | N21: 0 | O21: 2 | P21: 1 | Q21: 100 | R21: 50 | S21: 5 | T21: 2 | U21: 100 | V21: 40 | W21: 0 | X21: 0 | Y21: 0 | Z21: 0 | AA21: 2 | AB21: 2 | AC21: 100 | AD21: 100 | AE21: 3 | AF21: 1 | AG21: 100 | AH21: 33.3 | AI21: 2 | AJ21: 1 | AK21: 100 | AL21: 50 | AM21: 0 | AN21: 0 | AO21: 0 | AP21: 0 | AQ21: 0 | AR21: 0 | AS21: 0 | AT21: 0
A22: 18 | B22: МБОУ"Керлигачская ООШ" | C22: 1 | G22: 1 | H22: 0 | I22: 100 | J22: 0 | K22: 1 | L22: 1 | M22: 100 | N22: 100 | O22: 4 | P22: 4 | Q22: 100 | R22: 100 | S22: 0 | T22: 0 | U22: 0 | V22: 0 | W22: 2 | X22: 2 | Y22: 100 | Z22: 100 | AA22: 2 | AB22: 2 | AC22: 100 | AD22: 100 | AE22: 2 | AF22: 2 | AG22: 100 | AH22: 100 | AI22: 3 | AJ22: 3 | AK22: 100 | AL22: 100 | AM22: 0 | AN22: 0 | AO22: 0 | AP22: 0 | AQ22: 0 | AR22: 0 | AS22: 0 | AT22: 0
A23: 19 | B23: МБОУ "Нижнечершилинская ООШ" | C23: 5 | G23: 0 | H23: 0 | I23: 0 | J23: 0 | K23: 3 | L23: 1 | M23: 100 | N23: 33.3 | O23: 3 | P23: 2 | Q23: 100 | R23: 66.6 | S23: 0 | T23: 0 | U23: 0 | V23: 0 | W23: 3 | X23: 2 | Y23: 100 | Z23: 66.6 | AA23: 6 | AB23: 6 | AC23: 100 | AD23: 100 | AE23: 6 | AF23: 5 | AG23: 100 | AH23: 83.3 | AI23: 6 | AJ23: 6 | AK23: 100 | AL23: 100 | AM23: 0 | AN23: 0 | AO23: 0 | AP23: 0 | AQ23: 0 | AR23: 0 | AS23: 0 | AT23: 0
A24: 20 | B24: МБОУ "Урдалинская ООШ" МО ЛМР РТ | C24: 0 | D24: 0 | E24: 0 | F24: 0 | G24: 3 | H24: 1 | I24: 100 | J24: 33.3 | K24: 4 | L24: 3 | M24: 100 | N24: 75 | O24: 1 | P24: 1 | Q24: 100 | R24: 100 | S24: 2 | T24: 1 | U24: 100 | V24: 50 | W24: 2 | X24: 2 | Y24: 100 | Z24: 100 | AA24: 4 | AB24: 4 | AC24: 100 | AD24: 100 | AE24: 3 | AF24: 3 | AG24: 100 | AH24: 100 | AI24: 1 | AJ24: 1 | AK24: 100 | AL24: 100
A25: 21 | B25: МБОУ "СОШ №13 г. Лениногорска" МО "ЛМР" РТ | G25: 3 | H25: 3 | I25: 100 | J25: 100 | K25: 5 | L25: 5 | M25: 100 | N25: 100 | O25: 6 | P25: 6 | Q25: 100 | R25: 100 | S25: 4 | T25: 3 | U25: 100 | V25: 75 | W25: 3 | X25: 3 | Y25: 100 | Z25: 100 | AA25: 4 | AB25: 4 | AC25: 100 | AD25: 100 | AE25: 3 | AF25: 3 | AG25: 100 | AH25: 100 | AI25: 2 | AJ25: 2 | AK25: 100 | AL25: 100 | AM25: 0 | AQ25: 0
A26: итого | G26: =SUM(G5:G25) -> 178 | H26: =SUM(H5:H25) -> 133 | I26: 98.9 | J26: 74.7 | K26: =SUM(K5:K25) -> 158 | L26: =SUM(L5:L25) -> 141 | M26: 100 | N26: 89.2 | O26: =SUM(O5:O25) -> 171 | P26: =SUM(P5:P25) -> 155 | Q26: 100 | R26: 90 | S26: =SUM(S5:S25) -> 159 | T26: =SUM(T5:T25) -> 147 | U26: 100 | V26: 92.4 | W26: =SUM(W5:W25) -> 135 | X26: =SUM(X5:X25) -> 128 | Y26: 100 | Z26: 94.8 | AA26: =SUM(AA5:AA25) -> 174 | AB26: =SUM(AB5:AB25) -> 157 | AC26: 100 | AD26: 90.2 | AE26: =SUM(AE5:AE25) -> 179 | AF26: =SUM(AF5:AF25) -> 169 | AG26: 100 | AH26: 94.4 | AI26: =SUM(AI5:AI25) -> 206 | AJ26: =SUM(AJ5:AJ25) -> 187 | AK26: 100 | AL26: 90.7 | AM26: =SUM(AM5:AM25) -> 44 | AN26: =SUM(AN5:AN25) -> 44 | AO26: 100 | AP26: 100 | AQ26: 57 | AR26: =SUM(AR5:AR25) -> 57 | AS26: 100 | AT26: 100
B29: итого ЛМР успеваемость | D29: 98.90%
B30: качество | D30: 90.20%
B32: город | C32: успеваемость | E32: 98.90%
C33: качество | E33: 89.90%
B35: село | C35: успеваемоть | E35: 98.90%
C36: качество | E36: 90%

Sheet чуваш.язык
A1: Предмет: родной (чувашский) язык (2023 -2024 уч.год)
A3: № | B3: Наименование ОУ | C3: 1 класс | G3: 2 класс | K3: 3 класс | O3: 4 класс | S3: 5 класс | W3: 6 класс | AA3: 7 класс | AE3: 8 класс | AI3: 9 класс
C4: кол-во учащихся всего | D4: кол-во ударников и отличников | E4: успеваемость, % | F4: качество, % | G4: кол-во учащихся всего | H4: кол-во ударников и отличников | I4: успеваемость, % | J4: качество, % | K4: кол-во учащихся всего | L4: кол-во ударников и отличников | M4: успеваемость, % | N4: качество, % | O4: кол-во учащихся всего | P4: кол-во ударников и отличников | Q4: успеваемость, % | R4: качество, % | S4: кол-во учащихся всего | T4: кол-во ударников и отличников | U4: успеваемость, % | V4: качество, % | W4: кол-во учащихся всего | X4: кол-во ударников и отличников | Y4: успеваемость, % | Z4: качество, % | AA4: кол-во учащихся всего | AB4: кол-во ударников и отличников | AC4: успеваемость, % | AD4: качество, % | AE4: кол-во учащихся всего | AF4: кол-во ударников и отличников | AG4: успеваемость, % | AH4: качество, % | AI4: кол-во учащихся всего | AJ4: кол-во ударников и отличников | AK4: успеваемость, % | AL4: качество, %
A5: 1 | B5: МБОУ "Ново-Сережкинская ООШ" | C5: 0 | D5: 0 | E5: 0 | F5: 0 | G5: 4 | H5: 4 | I5: 100 | J5: 100 | K5: 0 | L5: 0 | M5: 0 | N5: 0 | O5: 1 | P5: 1 | Q5: 100 | R5: 100 | S5: 4 | T5: 3 | U5: 100 | V5: 75 | W5: 0 | X5: 0 | Y5: 0 | Z5: 0 | AA5: 5 | AB5: 3 | AC5: 100 | AD5: 60 | AE5: 0 | AF5: 0 | AG5: 0 | AH5: 0 | AI5: 2 | AJ5: 2 | AK5: 100 | AL5: 100
B7: итого | C7: успеваемость 100%
C8: качество | D8: 89.10%

Sheet Род.рус.язык
A1: Предмет: родной (русский) язык
A3: № | B3: Наименование ОУ | C3: 1 класс | G3: 2 класс | K3: 3 класс | O3: 4 класс | S3: 5 класс | W3: 6 класс | AA3: 7 класс | AE3: 8 класс | AI3: 9 класс | AM3: 10 класс | AQ3: 11 класс
C4: кол-во учащихся всего | D4: кол-во ударников и отличников | E4: успеваемость, % | F4: качество, % | G4: кол-во учащихся всего | H4: кол-во ударников и отличников | I4: успеваемость, % | J4: качество, % | K4: кол-во учащихся всего | L4: кол-во ударников и отличников | M4: успеваемость, % | N4: качество, % | O4: кол-во учащихся всего | P4: кол-во ударников и отличников | Q4: успеваемость, % | R4: качество, % | S4: кол-во учащихся всего | T4: кол-во ударников и отличников | U4: успеваемость, % | V4: качество, % | W4: кол-во учащихся всего | X4: кол-во ударников и отличников | Y4: успеваемость, % | Z4: качество, % | AA4: кол-во учащихся всего | AB4: кол-во ударников и отличников | AC4: успеваемость, % | AD4: качество, % | AE4: кол-во учащихся всего | AF4: кол-во ударников и отличников | AG4: успеваемость, % | AH4: качество, % | AI4: кол-во учащихся всего | AJ4: кол-во ударников и отличников | AK4: успеваемость, % | AL4: качество, % | AM4: кол-во учащихся всего | AN4: кол-во ударников и отличников | AO4: успеваемость, % | AP4: качество, % | AQ4: кол-во учащихся всего | AR4: кол-во ударников и отличников | AS4: успеваемость, % | AT4: качество, %
A5: 1 | B5: МБОУ СОШ 7 | C5: 57 | G5: 62 | H5: 54 | I5: 100 | J5: 87 | K5: 40 | L5: 37 | M5: 100 | N5: 92.5 | O5: 62 | P5: 55 | Q5: 100 | R5: 88.7 | S5: 67 | T5: 58 | U5: 100 | V5: 86.5 | W5: 80 | X5: 72 | Y5: 100 | Z5: 90 | AA5: 55 | AB5: 47 | AC5: 100 | AD5: 85.5 | AE5: 68 | AF5: 54 | AG5: 100 | AH5: 79.4 | AI5: 79 | AJ5: 74 | AK5: 100 | AL5: 93.7 | AM5: 45 | AN5: 38 | AO5: 100 | AP5: 84.4 | AQ5: 30 | AR5: 30 | AS5: 100 | AT5: 100
A6: 2 | B6: МБОУ "СОШ №2" МО " ЛМР"РТ | C6: 57 | D6: 0 | E6: 0 | F6: 0 | G6: 63 | H6: 56 | I6: 96.8 | J6: 88.8 | K6: 65 | L6: 61 | M6: 98.4 | N6: 93.8 | O6: 76 | P6: 66 | Q6: 100 | R6: 86.8 | S6: 76 | T6: 69 | U6: 100 | V6: 90.7 | W6: 71 | X6: 61 | Y6: 100 | Z6: 85.9 | AA6: 64 | AB6: 60 | AC6: 100 | AD6: 93.75 | AE6: 75 | AF6: 69 | AG6: 100 | AH6: 92 | AI6: 73 | AJ6: 71 | AK6: 100 | AL6: 97.2 | AM6: 24 | AN6: 24 | AO6: 100 | AP6: 100 | AQ6: 21 | AR6: 21 | AS6: 100 | AT6: 100
A7: 3 | B7: МБОУ "СОШ№4" | C7: 10 | G7: 16 | H7: 13 | I7: 100 | J7: 83 | K7: 9 | L7: 8 | M7: 100 | N7: 100 | O7: 18 | P7: 14 | Q7: 100 | R7: 78 | S7: 23 | T7: 18 | U7: 100% | V7: 72 | W7: 25 | X7: 15 | Y7: 100 | Z7: 60 | AA7: 35 | AB7: 28 | AC7: 100 | AD7: 81.5 | AE7: 16 | AF7: 12 | AG7: 100 | AH7: 74 | AI7: 21 | AJ7: 16 | AK7: 100 | AL7: 81
A8: 4 | B8: МБОУ "СОШ №8" | C8: 56 | E8: 0 | G8: 38 | H8: 31 | I8: 100 | J8: 81.5 | K8: 46 | L8: 43 | M8: 100 | N8: 93.4 | O8: 64 | P8: 56 | Q8: 100 | R8: 87.5 | S8: 42 | T8: 34 | U8: 100 | V8: 80.9 | W8: 56 | X8: 50 | Y8: 100 | Z8: 89.2 | AA8: 52 | AB8: 39 | AC8: 100 | AD8: 75 | AE8: 51 | AF8: 46 | AG8: 100 | AH8: 90.1 | AI8: 35 | AJ8: 33 | AK8: 100 | AL8: 94.2 | AM8: 12 | AN8: 12 | AO8: 100 | AP8: 100 | AQ8: 16 | AR8: 16 | AS8: 100 | AT8: 100
A9: 5 | B9: МБОУ "СОШ № 10" | C9: 23 | D9: 0 | E9: 0 | F9: 0 | G9: 22 | H9: 22 | I9: 100 | J9: 100 | K9: 27 | L9: 25 | M9: 100 | N9: 93 | O9: 36 | P9: 31 | Q9: 100 | R9: 86 | S9: 34 | T9: 11 | U9: 100 | V9: 49.69 | W9: 41 | X9: 21 | Y9: 100 | Z9: 50.32 | AA9: 27 | AB9: 24 | AC9: 100 | AD9: 89 | AE9: 29 | AF9: 24 | AG9: 100 | AH9: 81 | AI9: 23 | AJ9: 23 | AK9: 100 | AL9: 100 | AM9: 0 | AN9: 0 | AO9: 0 | AP9: 0 | AQ9: 0 | AR9: 0 | AS9: 0 | AT9: 0
A10: 6 | B10: МБОУ лицей №12 | C10: 53 | D10: 0 | E10: 0 | F10: 0 | G10: 64 | H10: 57 | I10: 100 | J10: 89 | K10: 30 | L10: 29 | M10: 100 | N10: 97 | O10: 55 | P10: 51 | Q10: 100 | R10: 93 | S10: 59 | T10: 52 | U10: 100 | V10: 88 | W10: 49 | X10: 43 | Y10: 100 | Z10: 88 | AA10: 37 | AB10: 28 | AC10: 100 | AD10: 76 | AE10: 33 | AF10: 29 | AG10: 100 | AH10: 88 | AI10: 37 | AJ10: 35 | AK10: 100 | AL10: 95 | AM10: 50 | AN10: 49 | AO10: 100 | AP10: 97.5 | AQ10: 36 | AR10: 34 | AS10: 100 | AT10: 94
A11: 8 | B11: МБОУ "Тимяшевская СОШ" | C11: 6 | D11: б/о | E11: нет | F11: нет | G11: 4 | H11: 4 | I11: 100 | J11: 100 | K11: 5 | L11: 4 | M11: 100 | N11: 80 | O11: 3 | P11: 2 | Q11: 100 | R11: 66.67 | S11: 8 | T11: 7 | U11: 100 | V11: 87.5 | W11: 8 | X11: 8 | Y11: 100 | Z11: 100 | AA11: 8 | AB11: 8 | AC11: 100 | AD11: 100 | AE11: 11 | AF11: 8 | AG11: 100 | AH11: 72.73 | AI11: 0 | AJ11: 0 | AK11: нет | AL11: нет | AM11: 4 | AN11: 4 | AO11: 100 | AP11: 100 | AQ11: 0 | AR11: 0 | AS11: нет | AT11: нет
A12: 9 | B12: МБОУ "Старокувакская СОШ" | C12: 0 | D12: нет | E12: нет | F12: нет | G12: 0 | H12: нет | I12: нет | J12: нет | K12: 0 | L12: нет | M12: нет | N12: нет | O12: 0 | P12: нет | Q12: нет | R12: нет | S12: 0 | T12: нет | U12: нет | V12: нет | W12: 0 | X12: нет | Y12: нет | Z12: нет | AA12: 0 | AB12: нет | AC12: нет | AD12: нет | AE12: 9 | AF12: 9 | AG12: 100 | AH12: 100 | AI12: 16 | AJ12: 16 | AK12: 100 | AL12: 100 | AM12: 1 | AN12: 1 | AO12: 100 | AP12: 100 | AQ12: 3 | AR12: 3 | AS12: 100 | AT12: 100
A13: 10 | B13: МБОУ "СОШ №6 г.Лениногорска имени Героя России Д.Н.Исламова" ЛМР РТ | C13: 60 | G13: 48 | H13: 44 | I13: 100 | J13: 91.6 | K13: 59 | L13: 45 | M13: 100 | N13: 76.2 | O13: 43 | P13: 30 | Q13: 100 | R13: 69.7 | S13: 59 | T13: 52 | U13: 100 | V13: 88.1 | W13: 58 | X13: 52 | Y13: 100 | Z13: 89.6 | AA13: 55 | AB13: 47 | AC13: 100 | AD13: 85.4 | AE13: 48 | AF13: 43 | AG13: 100 | AH13: 89.5 | AI13: 57 | AJ13: 47 | AK13: 100 | AL13: 82.4 | AM13: 45 | AN13: 42 | AO13: 100 | AP13: 93.3 | AQ13: 49 | AR13: 44 | AS13: 100 | AT13: 89.7
A14: 11 | B14: МБОУ "СОШ №5" МО"ЛМР" РТ | C14: 22 | D14: 0 | E14: 0 | F14: 0 | G14: 23 | H14: 17 | I14: 100% | J14: 74% | K14: 37 | L14: 30 | M14: 100% | N14: 81% | O14: 25 | P14: 18 | Q14: 100% | R14: 72% | S14: 30 | T14: 26 | U14: 100% | V14: 87% | W14: 38 | X14: 27 | Y14: 100% | Z14: 71% | AA14: 23 | AB14: 18 | AC14: 100% | AD14: 78% | AE14: 55 | AF14: 39 | AG14: 100% | AH14: 71.00% | AI14: 7 | AJ14: 6 | AK14: 100% | AL14: 86% | AM14: 11 | AN14: 10 | AO14: 100% | AP14: 91% | AQ14: 6 | AR14: 6 | AS14: 100% | AT14: 100%
A15: 12 | B15: МБОУ "ООШ№1" | G15: 7 | H15: 4 | I15: 100 | J15: 57.14 | K15: 3 | L15: 3 | M15: 100 | N15: 100 | O15: 12 | P15: 12 | Q15: 100 | R15: 100 | S15: 11 | T15: 9 | U15: 100 | V15: 81.81 | W15: 7 | X15: 7 | Y15: 100 | Z15: 100 | AA15: 9 | AB15: 8 | AC15: 100 | AD15: 88.8 | AE15: 5 | AF15: 5 | AG15: 100 | AH15: 100 | AI15: 7 | AJ15: 6 | AK15: 100 | AL15: 85.71 | AM15: 0 | AN15: 0 | AO15: 0 | AP15: 0 | AQ15: 0 | AR15: 0 | AS15: 0 | AT15: 0
A16: 13 | B16: МБОУ СОШ №3 | C16: 11 | D16: 0 | E16: 0 | F16: 0 | G16: 13 | H16: 13 | I16: 100% | J16: 100% | K16: 13 | L16: 6 | M16: 100% | N16: 46% | O16: 18 | P16: 11 | Q16: 94% | R16: 61% | S16: 14 | T16: 8 | U16: 100% | V16: 57% | W16: 12 | X16: 8 | Y16: 100% | Z16: 66% | AA16: 12 | AB16: 10 | AC16: 100% | AD16: 83% | AE16: 15 | AF16: 11 | AG16: 100% | AH16: 73% | AI16: 20 | AJ16: 15 | AK16: 100% | AL16: 75% | AM16: 0 | AN16: 0 | AO16: 0 | AP16: 0 | AQ16: 0 | AR16: 0 | AS16: 0 | AT16: 0
A17: 14 | B17: МБОУ "СОШ №13 г. Лениногорска" МО "ЛМР" РТ | G17: 4 | H17: 4 | I17: 100 | J17: 100 | K17: 12 | L17: 11 | M17: 100 | N17: 91 | O17: 3 | P17: 3 | Q17: 100 | R17: 100 | S17: 6 | T17: 2 | U17: 100 | V17: 33 | W17: 13 | X17: 6 | Y17: 100 | Z17: 46 | AA17: 14 | AB17: 7 | AC17: 100 | AD17: 50 | AE17: 8 | AF17: 6 | AG17: 100 | AH17: 75 | AI17: 0 | AJ17: 0 | AK17: 0 | AL17: 0 | AM17: 0
A18: итого | C18: =SUM(C5:C17) -> 355 | D18: =SUM(D5:D17) -> 0 | E18: 0 | F18: =SUM(F5:F17) -> 0 | G18: =SUM(G5:G17) -> 364 | H18: =SUM(H5:H17) -> 319 | I18: 99.7 | J18: 87.6 | K18: =SUM(K5:K17) -> 346 | L18: =SUM(L5:L17) -> 302 | M18: 99.8 | N18: 87.2 | O18: =SUM(O5:O17) -> 415 | P18: =SUM(P5:P17) -> 349 | Q18: 99.5 | R18: 84 | S18: =SUM(S5:S17) -> 429 | T18: =SUM(T5:T17) -> 346 | U18: 100 | V18: 80 | W18: =SUM(W5:W17) -> 458 | X18: =SUM(X5:X17) -> 370 | Y18: 100 | Z18: 81 | AA18: =SUM(AA5:AA17) -> 391 | AB18: =SUM(AB5:AB17) -> 324 | AC18: 100 | AD18: 82.8 | AE18: =SUM(AE5:AE17) -> 423 | AF18: =SUM(AF5:AF17) -> 355 | AG18: 100 | AH18: 84 | AI18: =SUM(AI5:AI17) -> 375 | AJ18: =SUM(AJ5:AJ17) -> 342 | AK18: 100 | AL18: 91.2 | AM18: =SUM(AM5:AM17) -> 192 | AN18: =SUM(AN5:AN17) -> 180 | AO18: 100 | AP18: 93.7 | AQ18: =SUM(AQ5:AQ17) -> 161 | AR18: =SUM(AR5:AR17) -> 154 | AS18: 100 | AT18: 95.6
B20: итого ЛМР | C20: успеваемость | E20: 99.90%
C21: качество | E21: 85.50%
B24: город | C24: успеваемость | E24: 99.90%
C25: качество | E25: 84.50%
B27: село | C27: успеваемость | E27: 100%
C28: качество | E28: 86.20%

Sheet род чув лит
A1: Предмет: литературное чтение на родном(чувашском) языке - 1-4 классы; родная (чувашская) литература - 5-9 классы (2023 -2024 уч.год)
A3: № | B3: Наименование ОУ | C3: 1 класс | G3: 2 класс | K3: 3 класс | O3: 4 класс | S3: 5 класс | W3: 6 класс | AA3: 7 класс | AE3: 8 класс | AI3: 9 класс
C4: кол-во учащихся всего | D4: кол-во ударников и отличников | E4: успеваемость, % | F4: качество, % | G4: кол-во учащихся всего | H4: кол-во ударников и отличников | I4: успеваемость, % | J4: качество, % | K4: кол-во учащихся всего | L4: кол-во ударников и отличников | M4: успеваемость, % | N4: качество, % | O4: кол-во учащихся всего | P4: кол-во ударников и отличников | Q4: успеваемость, % | R4: качество, % | S4: кол-во учащихся всего | T4: кол-во ударников и отличников | U4: успеваемость, % | V4: качество, % | W4: кол-во учащихся всего | X4: кол-во ударников и отличников | Y4: успеваемость, % | Z4: качество, % | AA4: кол-во учащихся всего | AB4: кол-во ударников и отличников | AC4: успеваемость, % | AD4: качество, % | AE4: кол-во учащихся всего | AF4: кол-во ударников и отличников | AG4: успеваемость, % | AH4: качество, % | AI4: кол-во учащихся всего | AJ4: кол-во ударников и отличников | AK4: успеваемость, % | AL4: качество, %
A5: 1 | B5: МБОУ "Ново-Сережкинская ООШ" | C5: 0 | D5: 0 | E5: 0 | F5: 0 | G5: 4 | H5: 4 | I5: 100 | J5: 100 | K5: 0 | L5: 0 | M5: 0 | N5: 0 | O5: 1 | P5: 1 | Q5: 100 | R5: 100 | S5: 4 | T5: 3 | U5: 100 | V5: 75 | W5: 0 | X5: 0 | Y5: 0 | Z5: 0 | AA5: 5 | AB5: 5 | AC5: 100 | AD5: 100 | AE5: 0 | AF5: 0 | AG5: 0 | AH5: 0 | AI5: 2 | AJ5: 2 | AK5: 100 | AL5: 100
B7: итого успеваемость 100%
B8: качество | D8: 95%

Sheet Род.рус.лит.
A1: Предмет: литературное чтение на родном (русском) языке - 1-4 классы; родная (русская) литература - 5-11 классы
A3: № | B3: Наименование ОУ | C3: 1 класс | G3: 2 класс | K3: 3 класс | O3: 4 класс | S3: 5 класс | W3: 6 класс | AA3: 7 класс | AE3: 8 класс | AI3: 9 класс | AM3: 10 класс | AQ3: 11 класс
C4: кол-во учащихся всего | D4: кол-во ударников и отличников | E4: успеваемость, % | F4: качество, % | G4: кол-во учащихся всего | H4: кол-во ударников и отличников | I4: успеваемость, % | J4: качество, % | K4: кол-во учащихся всего | L4: кол-во ударников и отличников | M4: успеваемость, % | N4: качество, % | O4: кол-во учащихся всего | P4: кол-во ударников и отличников | Q4: успеваемость, % | R4: качество, % | S4: кол-во учащихся всего | T4: кол-во ударников и отличников | U4: успеваемость, % | V4: качество, % | W4: кол-во учащихся всего | X4: кол-во ударников и отличников | Y4: успеваемость, % | Z4: качество, % | AA4: кол-во учащихся всего | AB4: кол-во ударников и отличников | AC4: успеваемость, % | AD4: качество, % | AE4: кол-во учащихся всего | AF4: кол-во ударников и отличников | AG4: успеваемость, % | AH4: качество, % | AI4: кол-во учащихся всего | AJ4: кол-во ударников и отличников | AK4: успеваемость, % | AL4: качество, % | AM4: кол-во учащихся всего | AN4: кол-во ударников и отличников | AO4: успеваемость, % | AP4: качество, % | AQ4: кол-во учащихся всего | AR4: кол-во ударников и отличников | AS4: успеваемость, % | AT4: качество, %
A5: 1 | B5: МБОУ СОШ 7 | C5: 57 | G5: 62 | H5: 60 | I5: 100 | J5: 96.8 | K5: 40 | L5: 37 | M5: 100 | N5: 92.5 | O5: 62 | P5: 57 | Q5: 100 | R5: 91.9 | S5: 67 | T5: 59 | U5: 100 | V5: 88 | W5: 80 | X5: 69 | Y5: 100 | Z5: 86.3 | AA5: 55 | AB5: 47 | AC5: 100 | AD5: 85.5 | AE5: 68 | AF5: 54 | AG5: 100 | AH5: 79.4 | AI5: 79 | AJ5: 75 | AK5: 100 | AL5: 94.9 | AM5: 45 | AN5: 43 | AO5: 100 | AP5: 95.5 | AQ5: 30 | AR5: 30 | AS5: 100 | AT5: 100
A6: 2 | B6: МБОУ "СОШ №2" МО " ЛМР"РТ | C6: 57 | D6: 0 | E6: 0 | F6: 0 | G6: 63 | H6: 58 | I6: 98.4 | J6: 92.06 | K6: 65 | L6: 61 | M6: 98.4 | N6: 93.8 | O6: 76 | P6: 70 | Q6: 100 | R6: 92.1 | S6: 76 | T6: 75 | U6: 100 | V6: 98.6 | W6: 71 | X6: 64 | Y6: 100 | Z6: 90.1 | AA6: 64 | AB6: 62 | AC6: 100 | AD6: 96.8 | AE6: 75 | AF6: 67 | AG6: 100 | AH6: 89.3 | AI6: 73 | AJ6: 73 | AK6: 100 | AL6: 100 | AM6: 24 | AN6: 24 | AO6: 100 | AP6: 100 | AQ6: 0 | AR6: 0 | AS6: 0 | AT6: 0
A7: 3 | B7: МБОУ "СОШ№4" | C7: 10 | G7: 16 | H7: 16 | I7: 100 | J7: 100 | K7: 16 | L7: 15 | M7: 100 | N7: 94.6 | O7: 18 | P7: 17 | Q7: 100 | R7: 95 | S7: 23 | T7: 18 | U7: 100% | V7: 72 | W7: 25 | X7: 20 | Y7: 100 | Z7: 80 | AA7: 35 | AB7: 32 | AC7: 100 | AD7: 92 | AE7: 16 | AF7: 13 | AG7: 100 | AH7: 81 | AI7: 21 | AJ7: 16 | AK7: 100 | AL7: 81
A8: 4 | B8: МБОУ "СОШ №8" | C8: 56 | G8: 38 | H8: 33 | I8: 100 | J8: 86.8 | K8: 46 | L8: 46 | M8: 100 | N8: 100 | O8: 64 | P8: 55 | Q8: 100 | R8: 85.9 | S8: 42 | T8: 33 | U8: 100 | V8: 78.5 | W8: 56 | X8: 51 | Y8: 100 | Z8: 91 | AA8: 52 | AB8: 42 | AC8: 100 | AD8: 80.7 | AE8: 51 | AF8: 46 | AG8: 100 | AH8: 90.1 | AI8: 35 | AJ8: 32 | AK8: 100 | AL8: 91.4 | AM8: 12 | AN8: 12 | AO8: 100 | AP8: 100 | AQ8: 16 | AR8: 16 | AS8: 100 | AT8: 100
A9: 5 | B9: МБОУ "СОШ № 10" | C9: 23 | D9: 0 | E9: 0 | F9: 0 | G9: 22 | H9: 22 | I9: 100 | J9: 100 | K9: 27 | L9: 26 | M9: 100 | N9: 96 | O9: 36 | P9: 31 | Q9: 100 | R9: 86 | S9: 34 | T9: 31 | U9: 100 | V9: 91 | W9: 42 | X9: 21 | Y9: 100 | Z9: 51.6 | AA9: 27 | AB9: 24 | AC9: 100 | AD9: 89 | AE9: 29 | AF9: 24 | AG9: 100 | AH9: 81 | AI9: 23 | AJ9: 23 | AK9: 100 | AL9: 100 | AM9: 0 | AN9: 0 | AO9: 0 | AP9: 0 | AQ9: 0 | AR9: 0 | AS9: 0 | AT9: 0
A10: 6 | B10: МБОУ лицей №12 | C10: 53 | D10: 0 | E10: 0 | F10: 0 | G10: 64 | H10: 63 | I10: 100 | J10: 98 | K10: 30 | L10: 30 | M10: 100 | N10: 100 | O10: 55 | P10: 54 | Q10: 100 | R10: 98 | S10: 59 | T10: 55 | U10: 100 | V10: 93 | W10: 49 | X10: 46 | Y10: 100 | Z10: 94 | AA10: 37 | AB10: 31 | AC10: 100 | AD10: 84 | AE10: 33 | AF10: 30 | AG10: 100 | AH10: 91 | AI10: 37 | AJ10: 35 | AK10: 100 | AL10: 95 | AM10: 50 | AN10: 50 | AO10: 100 | AP10: 100 | AQ10: 36 | AR10: 35 | AS10: 100 | AT10: 97
A11: 7 | B11: МБОУ "Тимяшевская СОШ" | C11: 6 | D11: б/о | E11: нет | F11: нет | G11: 4 | H11: 4 | I11: 100 | J11: 100 | K11: 5 | L11: 4 | M11: 100 | N11: 80 | O11: 3 | P11: 2 | Q11: 100 | R11: 66.67 | S11: 8 | T11: 8 | U11: 100 | V11: 100 | W11: 8 | X11: 8 | Y11: 100 | Z11: 100 | AA11: 8 | AB11: 7 | AC11: 100 | AD11: 87.5 | AE11: 11 | AF11: 9 | AG11: 100 | AH11: 81.82 | AI11: 0 | AJ11: 0 | AK11: нет | AL11: нет | AM11: 4 | AN11: 4 | AO11: 100 | AP11: 100 | AQ11: 0 | AR11: 0 | AS11: нет | AT11: нет
A12: 8 | B12: МБОУ "Старокувакская СОШ" | C12: 0 | D12: нет | E12: нет | F12: нет | G12: 0 | H12: нет | I12: нет | J12: нет | K12: 0 | L12: нет | M12: нет | N12: нет | O12: 0 | P12: нет | Q12: нет | R12: нет | S12: 0 | T12: нет | U12: нет | V12: нет | W12: 0 | X12: нет | Y12: нет | Z12: нет | AA12: 0 | AB12: нет | AC12: нет | AD12: нет | AE12: 9 | AF12: 9 | AG12: 100 | AH12: 100 | AI12: 16 | AJ12: 16 | AK12: 100 | AL12: 100 | AM12: 1 | AN12: 1 | AO12: 100 | AP12: 100 | AQ12: 3 | AR12: 3 | AS12: 100 | AT12: 100
A13: 9 | B13: МБОУ "СОШ №6 г.Лениногорска имени Героя России Д.Н.Исламова" ЛМР РТ | C13: 60 | G13: 48 | H13: 48 | I13: 100 | J13: 100 | K13: 59 | L13: 56 | M13: 100 | N13: 94.9 | O13: 43 | P13: 38 | Q13: 100 | R13: 88.3 | S13: 59 | T13: 54 | U13: 100 | V13: 91.5 | W13: 58 | X13: 57 | Y13: 100 | Z13: 98.2 | AA13: 55 | AB13: 52 | AC13: 100 | AD13: 94.5 | AE13: 48 | AF13: 46 | AG13: 100 | AH13: 95.8 | AI13: 57 | AJ13: 51 | AK13: 100 | AL13: 89.4 | AM13: 45 | AN13: 42 | AO13: 100 | AP13: 93.3 | AQ13: 49 | AR13: 49 | AS13: 100 | AT13: 100
A14: 10 | B14: МБОУ "СОШ №5" МО"ЛМР" РТ | C14: 22 | D14: 0 | E14: 0 | F14: 0 | G14: 23 | H14: 17 | I14: 100% | J14: 74% | K14: 37 | L14: 30 | M14: 100% | N14: 81% | O14: 25 | P14: 19 | Q14: 100% | R14: 76% | S14: 30 | T14: 24 | U14: 100% | V14: 80% | W14: 38 | X14: 29 | Y14: 100% | Z14: 76% | AA14: 23 | AB14: 15 | AC14: 100% | AD14: 65% | AE14: 55 | AF14: 41 | AG14: 100% | AH14: 75% | AI14: 7 | AJ14: 5 | AK14: 100% | AL14: 71% | AM14: 11 | AN14: 10 | AO14: 100% | AP14: 91% | AQ14: 6 | AR14: 6 | AS14: 100% | AT14: 100%
A15: 11 | B15: МБОУ "ООШ№1" | G15: 7 | H15: 4 | I15: 100 | J15: 57.14 | K15: 7 | L15: 4 | M15: 100 | N15: 57.14 | O15: 12 | P15: 12 | Q15: 100 | R15: 100 | S15: 11 | T15: 8 | U15: 100 | V15: 72.72 | W15: 7 | X15: 7 | Y15: 100 | Z15: 100 | AA15: 9 | AB15: 9 | AC15: 100 | AD15: 100 | AE15: 5 | AF15: 5 | AG15: 100 | AH15: 100 | AI15: 7 | AJ15: 6 | AK15: 100 | AL15: 85.71 | AM15: 0 | AN15: 0 | AO15: 0 | AP15: 0 | AQ15: 0 | AR15: 0 | AS15: 0 | AT15: 0
A16: 12 | B16: МБОУ СОШ №3 | C16: 11 | G16: 13 | H16: 12 | I16: 100% | J16: 92% | K16: 13 | L16: 8 | M16: 100% | N16: 61% | O16: 18 | P16: 13 | Q16: 94% | R16: 72% | S16: 14 | T16: 8 | U16: 100% | V16: 64% | W16: 12 | X16: 10 | Y16: 100% | Z16: 83% | AA16: 12 | AB16: 12 | AC16: 100% | AD16: 100% | AE16: 14 | AF16: 12 | AG16: 100% | AH16: 81% | AI16: 20 | AJ16: 17 | AK16: 100% | AL16: 85% | AM16: 0 | AN16: 0 | AO16: 0 | AQ16: 0 | AT16: 0
A17: 13 | B17: МБОУ "СОШ №13 г. Лениногорска" МО "ЛМР" РТ | G17: 4 | H17: 4 | I17: 100 | J17: 100 | K17: 12 | L17: 11 | M17: 100 | N17: 83 | O17: 3 | P17: 3 | Q17: 100 | R17: 100 | S17: 6 | T17: 2 | U17: 100 | V17: 33 | W17: 13 | X17: 8 | Y17: 100 | Z17: 61 | AA17: 14 | AB17: 11 | AC17: 100 | AD17: 78 | AE17: 8 | AF17: 6 | AG17: 100 | AH17: 75 | AI17: 5 | AJ17: 4 | AK17: 100 | AL17: 80 | AM17: 0 | AQ17: 0
A18: итого | C18: =SUM(C5:C17) -> 355 | D18: 0 | E18: 0 | F18: 0 | G18: 364 | H18: 341 | I18: 99.8 | J18: 93.6 | K18: =SUM(K5:K17) -> 357 | L18: =SUM(L5:L17) -> 328 | M18: 99.8 | N18: 91.8 | O18: =SUM(O5:O17) -> 415 | P18: =SUM(P5:P17) -> 371 | Q18: 99.5 | R18: 89.3 | S18: =SUM(S5:S17) -> 429 | T18: =SUM(T5:T17) -> 375 | U18: 100 | V18: 87.4 | W18: =SUM(W5:W17) -> 459 | X18: =SUM(X5:X17) -> 390 | Y18: 100 | Z18: 84.9 | AA18: =SUM(AA5:AA17) -> 391 | AB18: =SUM(AB5:AB17) -> 344 | AC18: 100 | AD18: 87.9 | AE18: =SUM(AE5:AE17) -> 422 | AF18: =SUM(AF5:AF17) -> 362 | AG18: 100 | AH18: 85.7 | AI18: =SUM(AI5:AI17) -> 380 | AJ18: =SUM(AJ5:AJ17) -> 353 | AK18: 100 | AL18: 92.8 | AM18: =SUM(AM5:AM17) -> 192 | AN18: =SUM(AN5:AN17) -> 186 | AO18: 100 | AP18: 96.8 | AQ18: =SUM(AQ5:AQ17) -> 140 | AR18: =SUM(AR5:AR17) -> 139 | AS18: 100 | AT18: 99.2
B21: итого ЛМР | C21: успеваемость | E21: 99.90%
C22: качество | E22: 89.60%
B24: город | C24: успеваемость | E24: 99.90%
C25: качество | E25: 89.80%
B27: село | C27: успеваемость | E27: 100%
C28: качество | E28: 89.40%
